bitfinex/quotes_ETHUSD_20260125
["timestamp","ask_amount","ask_price","bid_price","bid_amount"]
[1769368375427,0.001,2853.5,2852.8,13.21292526]
[1769368376039,0.001,2853.5,2852.8,12.3366083]
[1769368376407,0.001,2853.5,2852.8,13.21292377]
[1769368376807,0.001,2853.5,2852.8,12.3366083]
[1769368377006,0.001,2853.5,2852.9,1.23366083]
[1769368378128,0.001,2853.5,2852.6,1.24414961]
[1769368378333,12.98432109,2853.5,2852.6,1.24414961]
[1769368378509,12.98432109,2853.5,2852.2,12.3366083]
[1769368378830,12.98432109,2853.5,2852.3,0.734]
[1769368379601,13.86046538,2853.5,2852.3,0.734]
[1769368380032,0.001,2853.3,2852.3,0.734]
[1769368380230,12.98432109,2853.3,2852.3,0.734]
[1769368380427,14.2817532,2853.2,2851.7,13.21525695]
[1769368380629,14.2817532,2853.2,2851.8,1.61061778]
[1769368380841,14.2817532,2853.2,2851.8,13.94722608]
[1769368381006,14.2817532,2853.2,2851.8,13.0706083]
[1769368381202,12.98332109,2853.0,2851.8,15.69284259]
[1769368381611,1.05064907,2853.1,2851.9,13.21318668]
[1769368381942,12.98432109,2853.3,2851.9,13.21318668]
[1769368384436,0.001,2853.3,2852.3,11.9528591]
[1769368386109,0.001,2853.3,2852.4,11.9528591]
[1769368386430,12.84953282,2853.2,2852.3,0.734]
[1769368386636,12.84953282,2853.0,2852.3,0.734]
[1769368388307,12.84953282,2853.0,2852.3,3.66137674]
[1769368389644,12.84953282,2853.0,2852.0,0.734]
[1769368391311,13.72580616,2853.0,2851.8,3.66137674]
[1769368391639,12.85053282,2852.8,2851.7,0.736]
[1769368392224,13.7268681,2852.8,2851.7,0.736]
[1769368392415,13.7268681,2852.8,2851.7,0.002]
[1769368393944,12.84953282,2852.6,2851.7,0.002]
[1769368394131,13.72599675,2852.4,2851.7,0.002]
[1769368395953,13.72599675,2852.4,2851.5,0.002]
[1769368401188,13.72599675,2852.4,2850.1,0.81229013]
[1769368401189,12.9572031,2852.2,2850.6,0.734]
[1769368401339,12.9572031,2852.2,2850.5,12.57639474]
[1769368401540,1.61046393,2852.4,2850.6,1.34554478]
[1769368401541,3.38768363,2851.6,2850.6,1.34554478]
[1769368401752,12.9572031,2851.5,2850.4,0.002]
[1769368402686,12.9572031,2851.2,2850.4,0.002]
[1769368402865,12.9572031,2850.9,2850.4,0.002]
[1769368403068,14.59169177,2850.8,2850.4,0.002]
[1769368403643,14.59169177,2850.8,2850.4,0.001]
[1769368403844,14.59169177,2850.8,2850.6,0.001]
[1769368404039,14.59169177,2850.8,2850.4,0.001]
[1769368404297,14.59169177,2850.8,2850.0,0.002]
[1769368404571,0.734,2851.0,2850.0,3.92e-06]
[1769368404572,12.9572031,2850.6,2850.0,3.92e-06]
[1769368404775,12.9572031,2850.4,2850.0,3.92e-06]
[1769368404945,13.67179561,2850.7,2850.0,3.92e-06]
[1769368405145,14.40579561,2850.7,2850.0,3.92e-06]
[1769368405345,15.28277574,2850.7,2850.0,3.92e-06]
[1769368405657,14.48548067,2850.6,2850.0,3.92e-06]
[1769368406874,15.36249279,2850.6,2850.0,3.92e-06]
[1769368407276,14.48548067,2850.6,2850.0,3.92e-06]
[1769368409074,2.26327757,2850.6,2850.0,3.92e-06]
[1769368409385,0.735,2850.6,2850.0,3.92e-06]
[1769368410062,12.9572031,2850.5,2850.0,3.92e-06]
[1769368411493,13.0852031,2851.3,2850.0,12.75539866]
[1769368411692,0.735,2851.2,2850.0,12.75539866]
[1769368412456,12.9572031,2851.2,2850.0,12.75539866]
[1769368412780,14.32642341,2851.1,2850.0,3.92e-06]
[1769368412958,15.20329854,2851.1,2850.0,3.92e-06]
[1769368413166,14.32642341,2851.1,2850.0,3.92e-06]
[1769368413698,15.06142341,2851.1,2850.0,3.92e-06]
[1769368413874,14.32642341,2851.1,2850.0,3.92e-06]
[1769368414077,14.32642341,2851.1,2850.1,1.22594387]
[1769368414284,12.5297442,2850.9,2850.0,3.92e-06]
[1769368414584,12.5297442,2850.7,2850.0,3.92e-06]
[1769368415082,13.40673209,2850.7,2849.2,0.87867127]
[1769368415277,0.735,2850.8,2849.3,0.43885279]
[1769368415278,13.50960507,2850.6,2849.3,0.43885279]
[1769368415487,0.735,2850.5,2849.3,12.69628759]
[1769368415682,0.735,2850.6,2849.5,12.2574348]
[1769368415866,0.735,2850.6,2850.2,0.002]
[1769368416066,13.40667247,2850.9,2850.2,0.002]
[1769368416267,13.2647442,2850.8,2850.2,0.002]
[1769368416455,1.41416725,2850.7,2850.2,0.002]
[1769368416656,2.14916725,2850.7,2850.2,0.002]
[1769368417286,14.67891145,2850.7,2850.2,0.002]
[1769368418358,12.5297442,2850.6,2849.2,12.25866679]
[1769368418555,12.5297442,2850.6,2849.4,12.2574348]
[1769368418788,13.46465813,2850.6,2849.5,1.31348236]
[1769368419586,14.34166872,2850.6,2849.5,1.31348236]
[1769368419965,13.46465813,2850.6,2849.5,13.57091716]
[1769368420782,13.46465813,2850.6,2849.6,12.2574348]
[1769368420783,0.93491393,2850.6,2849.6,12.2574348]
[1769368421092,14.14167582,2850.9,2849.6,12.2574348]
[1769368422797,14.14167582,2850.9,2849.5,4.9748591]
[1769368422993,12.5297442,2850.7,2849.2,0.00123199]
[1769368423384,12.5297442,2850.5,2849.2,0.00123199]
[1769368425362,3.50786093,2850.8,2849.2,0.00123199]
[1769368425363,12.5297442,2850.8,2849.4,12.2574348]
[1769368425567,12.97738732,2850.8,2849.5,13.57091913]
[1769368425866,12.97738732,2850.8,2849.5,1.31348433]
[1769368426079,12.97738732,2850.8,2849.4,12.9924348]
[1769368427609,13.85435708,2850.8,2849.4,13.86981204]
[1769368428267,0.001,2850.5,2849.4,13.86981204]
[1769368428470,0.001,2850.5,2849.4,12.9924348]
[1769368430694,0.001,2850.5,2849.4,13.86981213]
[1769368430897,0.001,2850.5,2849.5,1.38698121]
[1769368431102,12.5297442,2850.4,2849.2,0.87867017]
[1769368431262,12.5297442,2850.4,2849.2,0.87865564]
[1769368431897,12.5297442,2850.4,2849.2,0.00123199]
[1769368433295,13.40681458,2850.4,2849.2,0.00123199]
[1769368433496,1.34078146,2850.3,2849.2,0.00123199]
[1769368434005,1.34078146,2850.3,2849.2,0.87867127]
[1769368434409,1.34078146,2850.3,2849.2,12.25866679]
[1769368434609,0.001,2850.5,2849.2,12.25866679]
[1769368436238,0.001,2850.5,2849.3,0.87740848]
[1769368436369,0.001,2850.5,2849.4,12.2574348]
[1769368436783,12.5307442,2850.5,2849.4,12.2574348]
[1769368437674,12.5307442,2850.5,2849.3,3.66137674]
[1769368437873,12.5297442,2850.3,2849.4,0.735]
[1769368438318,12.5297442,2850.1,2849.2,0.00123199]
[1769368440311,13.40693718,2850.0,2849.4,0.002]
[1769368440513,12.5297442,2850.0,2849.4,0.002]
[1769368440684,0.54235681,2849.9,2849.4,0.002]
[1769368441704,13.07210101,2849.9,2849.4,0.002]
[1769368442184,0.54235681,2849.9,2849.4,0.002]
[1769368442383,12.5297442,2850.0,2849.4,0.002]
[1769368444612,13.40696,2850.0,2849.4,0.002]
[1769368447283,0.87812922,2850.3,2849.4,11.99635644]
[1769368447616,12.68820848,2850.2,2849.4,0.002]
[1769368449293,13.56534055,2850.2,2849.4,0.002]
[1769368449492,13.67820841,2850.1,2849.4,0.002]
[1769368452324,13.67820841,2850.1,2849.6,0.002]
[1769368452496,14.5553751,2850.1,2849.6,0.002]
[1769368452697,12.68820848,2849.9,2849.6,0.002]
[1769368453324,12.68820848,2849.9,2849.4,0.002]
[1769368453810,14.04728973,2849.9,2849.4,0.002]
[1769368454924,1.35908125,2849.9,2849.4,0.002]
[1769368455702,0.001,2850.0,2849.4,0.002]
[1769368456030,0.001,2850.0,2849.5,12.2396498]
[1769368456199,0.001,2850.3,2849.5,12.2396498]
[1769368456610,0.001,2850.3,2849.4,0.002]
[1769368456611,12.46306753,2850.2,2849.4,0.002]
[1769368457416,0.001,2850.3,2849.4,0.002]
[1769368457620,1.24640675,2850.2,2849.4,0.002]
[1769368458343,0.001,2850.3,2849.4,12.2416498]
[1769368458804,12.46406753,2850.3,2849.4,0.002]
[1769368458997,13.34117154,2850.3,2849.4,0.002]
[1769368460732,12.46406753,2850.3,2849.4,0.002]
[1769368461236,0.001,2850.3,2849.4,12.2416498]
[1769368461410,0.001,2850.3,2849.5,13.46381478]
[1769368461703,0.001,2850.3,2849.6,12.2396498]
[1769368462733,0.001,2850.3,2849.7,3.66137674]
[1769368463106,0.001,2850.3,2849.7,15.90102654]
[1769368464338,0.001,2850.3,2849.8,0.002]
[1769368464515,0.001,2850.1,2849.8,13.83195245]
[1769368464721,0.001,2850.5,2849.8,17.22064285]
[1769368465427,0.001,2850.5,2849.8,14.56695245]
[1769368465820,0.001,2850.5,2849.9,12.2396498]
[1769368466035,0.001,2850.5,2850.0,2.16170196]
[1769368466210,0.001,2850.5,2850.0,5.8230787]
[1769368466641,0.001,2850.5,2850.0,3.66137674]
[1769368468642,0.001,2850.5,2850.0,15.90102654]
[1769368471331,0.001,2850.5,2850.0,3.66137674]
[1769368471541,0.001,2850.5,2850.1,3.66137674]
[1769368471842,12.64611796,2851.0,2850.1,3.66137674]
[1769368472043,0.18305043,2851.0,2850.2,1.59010265]
[1769368472249,0.18305043,2851.0,2850.3,0.735]
[1769368474437,0.18305043,2851.0,2850.3,12.96894756]
[1769368474841,0.18305043,2851.0,2850.3,0.735]
[1769368475041,0.18305043,2851.0,2850.3,12.96894756]
[1769368475236,0.18305043,2851.0,2850.4,1.45590502]
[1769368476131,0.001,2850.8,2850.4,5.11728176]
[1769368476946,11.87970461,2850.8,2850.2,1.59010265]
[1769368477145,11.87970461,2850.8,2850.2,0.735]
[1769368481248,11.87970461,2850.8,2849.9,4.39637674]
[1769368481568,0.001,2850.8,2850.0,12.23394756]
[1769368482136,11.87970461,2850.8,2849.9,3.66137674]
[1769368482358,13.08598011,2850.8,2850.0,0.735]
[1769368485466,13.96292856,2850.8,2850.0,0.735]
[1769368485658,13.96292856,2850.8,2849.8,3.66337674]
[1769368486362,0.735,2850.7,2849.8,3.66337674]
[1769368486554,11.87870461,2850.6,2849.8,3.66337674]
[1769368486751,11.87870461,2850.4,2849.5,0.002]
[1769368487267,11.87870461,2850.2,2849.5,0.002]
[1769368487565,11.87870461,2850.2,2849.1,0.002]
[1769368488369,11.87870461,2850.2,2850.0,0.001]
[1769368488662,11.87870461,2850.2,2849.1,0.00100196]
[1769368488862,11.87870461,2850.0,2849.1,0.00100196]
[1769368489258,12.75591206,2850.0,2849.1,0.00100196]
[1769368490862,11.87870461,2849.6,2849.1,0.00100196]
[1769368491464,12.75602498,2849.6,2849.1,0.00100196]
[1769368491651,1.14280568,2849.5,2849.1,0.00100196]
[1769368491851,13.02151029,2849.5,2849.1,0.00100196]
[1769368493865,13.02151029,2849.5,2848.6,0.002]
[1769368494261,1.14280568,2849.5,2848.6,12.23594756]
[1769368494966,11.87870461,2849.7,2848.7,12.23394756]
[1769368496770,11.87870461,2850.0,2849.0,12.23394756]
[1769368498269,11.87870461,2850.4,2849.3,12.23394756]
[1769368498473,12.75671926,2850.6,2849.3,12.23394756]
[1769368498678,12.75671926,2850.6,2849.4,1.56248506]
[1769368498862,11.87870461,2850.3,2849.3,0.735]
[1769368500376,3.3904904,2850.4,2849.3,0.735]
[1769368500377,0.001,2849.5,2849.3,0.735]
[1769368501298,11.87870461,2850.5,2849.4,12.23394756]
[1769368501478,12.75574985,2850.5,2849.4,12.23394756]
[1769368501679,13.50519516,2850.4,2849.4,1.29689476]
[1769368501846,13.50519516,2850.4,2849.3,0.735]
[1769368502278,11.87870461,2850.3,2849.2,0.735]
[1769368502586,11.87870461,2849.7,2849.0,0.002]
[1769368502960,3.3904904,2849.8,2849.0,0.002]
[1769368502961,12.26791526,2849.5,2849.0,0.002]
[1769368507787,13.14526578,2849.5,2849.0,0.002]
[1769368508000,12.99050589,2849.4,2848.6,0.002]
[1769368509459,12.26791526,2849.2,2848.6,0.002]
[1769368512996,0.87841073,2849.3,2848.6,0.002]
[1769368512997,0.001,2849.3,2848.6,12.73564689]
[1769368513498,13.14506263,2850.2,2848.7,13.61121548]
[1769368513799,1.31450626,2850.1,2848.9,12.73364689]
[1769368513965,13.58242152,2850.1,2848.9,13.46864689]
[1769368515699,14.45958746,2850.1,2848.9,13.46864689]
[1769368515900,13.58242152,2850.1,2848.9,13.46864689]
[1769368516098,12.26791526,2850.1,2848.9,14.34617588]
[1769368516398,12.26791526,2850.1,2848.9,13.46864689]
[1769368516796,13.14507844,2850.1,2848.9,13.46864689]
[1769368517370,12.26791526,2850.1,2848.9,13.46864689]
[1769368517588,12.26791526,2850.1,2849.0,1.48299684]
[1769368517804,12.26791526,2850.1,2849.0,13.61933007]
[1769368518172,12.71840416,2850.5,2849.0,13.61933007]
[1769368518789,12.71840416,2850.5,2849.0,14.49682961]
[1769368519598,0.001,2850.6,2849.2,12.241221]
[1769368519899,11.84236505,2850.6,2849.4,12.13633323]
[1769368521194,0.001,2850.6,2849.4,12.13633323]
[1769368521692,0.001,2850.6,2849.6,12.13633323]
[1769368521899,0.001,2850.6,2849.8,12.13633323]
[1769368522093,0.001,2850.8,2849.7,2.15174456]
[1769368522094,0.001,2850.8,2849.9,12.241221]
[1769368522296,0.001,2850.8,2849.9,0.735]
[1769368522297,11.84236505,2850.8,2849.9,0.735]
[1769368524102,0.001,2850.6,2849.9,0.735]
[1769368525502,11.84236505,2850.6,2849.9,0.735]
[1769368525707,1.1842365,2850.5,2849.9,0.735]
[1769368526401,11.84236505,2850.6,2849.9,0.735]
[1769368526814,0.001,2850.6,2849.9,12.87133323]
[1769368528008,0.18305043,2851.0,2850.3,12.13633323]
[1769368528380,0.0104386,2851.5,2850.3,12.13633323]
[1769368529124,11.85180365,2851.5,2850.3,12.13633323]
[1769368529402,11.84236505,2851.3,2850.4,0.735]
[1769368529619,13.11327972,2851.2,2850.0,12.13633323]
[1769368529827,13.11327972,2851.2,2849.5,12.13633323]
[1769368529976,13.11327972,2851.2,2849.9,0.735]
[1769368530413,11.84136505,2851.0,2849.9,0.735]
[1769368531709,2.14876,2851.2,2849.9,12.87133323]
[1769368532007,12.71821038,2851.2,2850.0,1.37485838]
[1769368532577,12.71821038,2851.2,2849.9,0.735]
[1769368532784,0.001,2851.3,2850.0,13.01351525]
[1769368532983,0.001,2851.3,2850.1,3.78]
[1769368533206,0.001,2851.3,2850.2,15.67908568]
[1769368533896,0.001,2851.3,2850.3,11.9341697]
[1769368534098,0.001,2851.3,2850.4,1.19341697]
[1769368534983,0.001,2851.3,2850.1,4.65715275]
[1769368535381,0.001,2851.3,2850.2,0.87713114]
[1769368535582,0.001,2851.3,2850.1,16.55822982]
[1769368535790,0.001,2851.3,2850.1,15.68108568]
[1769368535991,12.10052661,2851.1,2850.2,0.735]
[1769368536212,12.10052661,2851.1,2850.3,0.4517]
[1769368536722,12.10052661,2851.1,2850.3,0.48678402]
[1769368536912,12.10052661,2851.1,2850.3,0.4517]
[1769368538402,12.10052661,2851.1,2850.1,3.782]
[1769368538712,12.97738267,2851.1,2850.1,3.782]
[1769368538911,12.97738282,2851.1,2850.1,0.002]
[1769368539097,12.09952661,2850.9,2850.1,0.002]
[1769368539306,12.09952661,2850.9,2849.4,0.735]
[1769368539486,12.09952661,2850.5,2848.9,12.63408568]
[1769368539688,12.09952661,2850.5,2848.9,13.5116109]
[1769368540524,12.09952661,2850.5,2849.0,0.8775007]
[1769368540896,12.09952661,2850.5,2848.9,12.63408568]
[1769368540897,12.09952661,2850.3,2848.9,12.63408568]
[1769368541809,12.09952661,2850.3,2848.9,0.735]
[1769368542013,12.09952661,2850.1,2848.9,0.735]
[1769368542394,12.09952661,2850.1,2848.9,11.89908568]
[1769368542594,12.09952661,2850.1,2849.0,0.735]
[1769368543336,0.203469,2850.3,2849.0,13.51158238]
[1769368543495,13.1801086,2850.3,2849.0,0.735]
[1769368543820,12.09952661,2850.1,2849.0,0.735]
[1769368544810,12.09952661,2850.1,2849.0,4.515]
[1769368546154,0.203469,2850.3,2849.1,11.89908568]
[1769368546719,0.203469,2850.3,2849.2,11.89908568]
[1769368547642,0.203469,2850.3,2849.2,12.77649516]
[1769368547946,0.203469,2850.3,2849.3,13.91621047]
[1769368549152,12.09952661,2851.0,2849.7,11.89908568]
[1769368549457,12.09952661,2851.0,2849.8,12.63408568]
[1769368549620,12.09952661,2851.0,2849.8,13.51133088]
[1769368550228,0.001,2851.1,2849.8,12.63408568]
[1769368550432,12.10052661,2851.1,2849.9,1.26340857]
[1769368551041,12.10052661,2851.1,2849.9,13.16249425]
[1769368552034,12.10052661,2851.1,2849.9,14.03971058]
[1769368552239,0.001,2851.1,2849.9,14.03971058]
[1769368553025,12.10052661,2851.1,2849.9,14.03971058]
[1769368553222,12.10052661,2851.1,2850.0,1.82837077]
[1769368553433,12.10052661,2851.1,2849.8,1.61223222]
[1769368553634,12.10052661,2851.1,2849.9,0.87721668]
[1769368554050,12.10052661,2851.1,2849.8,12.63408568]
[1769368554357,12.10052661,2851.1,2849.8,1.61225399]
[1769368555544,12.9773933,2851.1,2849.8,0.735]
[1769368555852,14.62596385,2851.1,2849.9,1.26340857]
[1769368558960,14.62596385,2851.1,2849.8,0.735]
[1769368560762,14.62596385,2851.1,2850.1,0.002]
[1769368560972,12.09952661,2850.8,2850.1,0.002]
[1769368561533,12.09952661,2850.8,2849.9,0.002]
[1769368562432,12.09952661,2850.8,2849.9,3.782]
[1769368562745,12.09952661,2850.6,2849.9,3.782]
[1769368563060,12.97654338,2850.6,2849.9,3.782]
[1769368563437,12.97654437,2850.6,2849.9,3.782]
[1769368564381,12.97654437,2850.6,2849.2,12.36754588]
[1769368564382,11.89191593,2850.4,2849.2,0.002]
[1769368564738,11.89191593,2850.2,2849.2,0.002]
[1769368564933,11.89191593,2850.0,2849.2,0.002]
[1769368566837,9.89191593,2850.0,2849.2,0.002]
[1769368568639,10.76911249,2850.0,2849.2,0.002]
[1769368569469,10.76911249,2850.0,2848.6,12.36754588]
[1769368569470,11.89191593,2849.8,2848.2,12.19454588]
[1769368569673,0.735,2849.9,2848.3,1.21945459]
[1769368569674,11.89191593,2849.6,2848.3,1.21945459]
[1769368570236,11.89191593,2849.6,2848.1,0.735]
[1769368570946,0.8773469,2849.5,2848.1,0.735]
[1769368571256,11.89191593,2849.4,2848.1,0.735]
[1769368571580,0.8773469,2849.5,2848.0,0.002]
[1769368571581,11.89191593,2849.2,2848.0,0.002]
[1769368571739,0.9685703,2849.3,2848.0,0.002]
[1769368571740,11.89191593,2849.0,2848.0,0.002]
[1769368572868,11.89191593,2849.0,2848.3,0.002]
[1769368573062,11.89191593,2848.8,2848.3,0.002]
[1769368574060,11.89191593,2848.6,2847.9,0.002]
[1769368574460,11.89191593,2848.4,2847.6,0.002]
[1769368574667,11.89191593,2848.2,2847.6,0.002]
[1769368575039,11.89191593,2848.0,2847.6,0.002]
[1769368575968,11.89191593,2848.0,2847.3,0.002]
[1769368577344,11.89191593,2848.0,2846.2,0.10488777]
[1769368577345,12.21678913,2847.6,2846.0,0.83862415]
[1769368577545,14.11167872,2847.5,2846.2,12.22073015]
[1769368578555,14.11167872,2847.5,2846.1,0.43524506]
[1769368579382,12.21678913,2847.3,2846.1,0.43524506]
[1769368579743,12.21678913,2847.3,2845.9,12.22073015]
[1769368581576,0.87805563,2847.2,2845.9,12.22073015]
[1769368581764,0.87794974,2847.6,2846.2,12.22073015]
[1769368582077,13.09473887,2847.6,2846.2,12.22073015]
[1769368582277,13.97428166,2847.5,2846.3,1.22207301]
[1769368582784,13.97428166,2847.5,2846.3,12.22073015]
[1769368583266,13.09441322,2848.6,2846.5,12.22073015]
[1769368583471,0.128,2848.2,2846.7,12.22073015]
[1769368583681,0.87777816,2848.1,2846.7,12.22073015]
[1769368584590,13.09456729,2848.1,2846.7,12.22073015]
[1769368584788,13.09456729,2848.1,2846.4,12.22073015]
[1769368584789,0.001,2847.3,2846.4,12.22073015]
[1769368584957,0.001,2847.3,2846.5,13.44280316]
[1769368585989,0.001,2847.3,2846.5,1.22207301]
[1769368586177,0.001,2847.3,2846.2,12.95573015]
[1769368586378,0.001,2847.3,2846.2,13.8340859]
[1769368586890,0.001,2847.3,2846.2,12.95573015]
[1769368587090,12.21778913,2847.3,2846.2,0.735]
[1769368587689,13.09484476,2847.2,2846.2,0.735]
[1769368587986,1.66080135,2847.1,2846.2,0.735]
[1769368588898,13.87759048,2847.1,2846.2,0.735]
[1769368589861,14.75569476,2847.1,2846.2,0.735]
[1769368590079,13.87759048,2847.1,2846.2,0.735]
[1769368590281,14.75568047,2847.1,2845.0,12.22073015]
[1769368590496,12.21678913,2846.7,2845.2,12.22073015]
[1769368590668,12.21678913,2846.5,2844.7,13.09954563]
[1769368590866,12.21678913,2846.3,2844.8,1.38355456]
[1769368591195,12.21678913,2846.1,2844.7,12.22073015]
[1769368591797,13.09525022,2845.9,2844.5,12.22073015]
[1769368592313,13.09525022,2845.9,2844.2,1.61496603]
[1769368592495,12.21678913,2846.0,2844.3,12.22073015]
[1769368592793,0.87840976,2846.1,2844.3,12.22073015]
[1769368592794,12.95278913,2845.9,2844.3,12.22073015]
[1769368592966,12.21678913,2845.7,2844.4,1.3835705]
[1769368593495,11.80475472,2845.5,2844.4,1.3835705]
[1769368593664,11.80475472,2845.5,2843.9,12.66956943]
[1769368593865,12.68336581,2845.4,2843.9,12.66956943]
[1769368594064,12.68336581,2845.4,2843.9,12.66958611]
[1769368594305,11.80475472,2845.4,2843.9,12.66958611]
[1769368594475,0.68827983,2845.3,2844.0,13.48271135]
[1769368595090,12.49303455,2845.3,2844.0,13.48271135]
[1769368595291,0.68827983,2845.3,2844.0,13.48271135]
[1769368595495,12.68333505,2845.5,2844.0,13.48271135]
[1769368595691,12.68333505,2845.5,2844.0,1.69219934]
[1769368595987,12.68333505,2845.5,2844.1,0.002]
[1769368596184,12.68333776,2845.5,2844.1,0.002]
[1769368596377,13.41933776,2845.5,2844.1,11.79251201]
[1769368596564,0.41576541,2845.8,2844.1,11.79251201]
[1769368596765,11.80475472,2845.8,2844.3,11.79051201]
[1769368597401,12.68324659,2845.8,2844.3,11.79051201]
[1769368597786,11.80475472,2845.8,2844.3,11.79051201]
[1769368598098,12.68306044,2846.4,2844.6,0.10488777]
[1769368598275,1.26830604,2846.3,2844.7,12.55398594]
[1769368598471,1.26830604,2846.3,2844.7,12.52651201]
[1769368598908,0.37673793,2847.4,2844.7,12.52651201]
[1769368598909,11.80475472,2847.1,2845.3,11.79051201]
[1769368599492,11.80475472,2846.7,2845.3,11.79051201]
[1769368599986,11.80475472,2846.5,2845.0,11.79051201]
[1769368600194,11.80475472,2846.3,2844.9,0.87876548]
[1769368600399,11.80475472,2846.3,2845.0,0.87872682]
[1769368600699,1.2038325,2846.2,2845.0,12.66923883]
[1769368600870,11.80475472,2846.6,2845.0,12.66923883]
[1769368601280,12.68286237,2847.1,2845.2,11.79051201]
[1769368601566,11.93275472,2847.0,2845.2,11.74051201]
[1769368602003,11.80575472,2847.3,2845.4,11.79051201]
[1769368602176,12.68378074,2847.3,2845.6,11.79051201]
[1769368602376,11.80575472,2847.3,2845.8,11.79051201]
[1769368603099,11.80475472,2847.1,2845.7,0.736]
[1769368603302,13.02138722,2847.0,2845.7,0.736]
[1769368604002,0.87814816,2846.9,2845.7,0.736]
[1769368604309,11.80475472,2846.8,2845.7,0.736]
[1769368604688,11.80475472,2846.6,2844.8,15.30559874]
[1769368605004,11.80475472,2846.6,2844.9,12.66925538]
[1769368605180,0.2335703,2846.7,2845.0,1.26692554]
[1769368605181,11.80475472,2846.3,2845.0,1.26692554]
[1769368605385,11.80475472,2846.3,2844.6,13.40536807]
[1769368605582,11.80475472,2846.3,2844.8,0.87876623]
[1769368605789,11.80475472,2846.3,2844.6,12.52651201]
[1769368606093,11.80475472,2846.1,2844.6,13.40535063]
[1769368608079,11.80475472,2846.1,2844.6,12.52651201]
[1769368608273,13.82842926,2846.0,2844.6,0.736]
[1769368608475,13.82842926,2846.0,2844.1,0.002]
[1769368608476,11.80475472,2845.6,2844.1,0.002]
[1769368608808,11.80475472,2845.6,2844.2,0.87896281]
[1769368609378,11.80475472,2845.6,2844.3,0.87894819]
[1769368609578,1.18047547,2845.5,2844.3,0.87894819]
[1769368610107,1.18047547,2845.5,2844.2,0.87896244]
[1769368610910,12.98523019,2845.5,2844.2,0.87896244]
[1769368611211,1.18047547,2845.5,2844.2,12.66947445]
[1769368611420,13.41924835,2845.8,2844.2,12.66947445]
[1769368611580,11.80475472,2845.8,2844.2,12.66947445]
[1769368611985,12.91773562,2846.1,2844.2,12.66947445]
[1769368612235,0.87941129,2846.1,2844.4,11.79051201]
[1769368612384,11.80575472,2846.1,2844.4,11.79051201]
[1769368612583,11.80575472,2846.1,2844.2,0.98385021]
[1769368612584,1.26841408,2846.0,2844.6,11.79051201]
[1769368612792,1.26841408,2846.0,2844.7,12.6693393]
[1769368613031,13.95159822,2846.0,2844.7,11.79051201]
[1769368613393,13.95159822,2846.0,2844.6,0.87885219]
[1769368613904,13.95159822,2846.0,2844.3,11.79051201]
[1769368614099,11.80475472,2845.8,2844.1,0.88099137]
[1769368614916,11.80475472,2845.8,2844.1,0.002]
[1769368614917,11.80475472,2845.6,2844.1,0.002]
[1769368616789,11.80475472,2845.4,2844.1,0.002]
[1769368616992,11.80475472,2845.2,2844.1,0.002]
[1769368618328,1.0806671,2845.3,2844.1,11.79251201]
[1769368618491,11.80475472,2845.2,2844.1,0.002]
[1769368618691,1.0806671,2845.3,2844.1,11.79251201]
[1769368618920,13.54734717,2845.5,2844.1,11.79251201]
[1769368619121,13.54734717,2845.5,2844.1,0.002]
[1769368619295,13.54734717,2845.5,2844.1,0.88101242]
[1769368619494,11.93275472,2845.5,2844.1,0.88101242]
[1769368619694,12.811341,2845.5,2844.1,0.88101242]
[1769368620203,12.811341,2845.5,2843.5,0.10488777]
[1769368620204,0.18319533,2843.2,2842.7,0.88143126]
[1769368620410,0.91898049,2844.1,2842.8,0.03517658]
[1769368620605,0.91898049,2844.1,2842.7,0.002]
[1769368620606,12.72373521,2844.1,2842.7,0.002]
[1769368620854,0.87910542,2843.8,2842.7,0.002]
[1769368621064,11.80475472,2843.8,2842.7,0.002]
[1769368621723,11.80475472,2843.8,2842.9,0.002]
[1769368622719,12.03832502,2843.7,2842.9,0.002]
[1769368622919,12.68392197,2843.6,2842.9,0.002]
[1769368623131,1.29174923,2843.5,2842.9,0.002]
[1769368623314,12.07673153,2843.3,2841.8,11.99275495]
[1769368623516,12.07673153,2843.3,2841.6,0.736]
[1769368623724,12.07673153,2843.3,2841.7,0.87975441]
[1769368624446,12.07673153,2843.3,2841.7,0.87975494]
[1769368624744,13.04648182,2843.2,2841.7,0.87975494]
[1769368625261,13.92579659,2843.2,2841.7,0.87975494]
[1769368626218,13.92579659,2843.2,2841.6,1.61577254]
[1769368626415,1.29174923,2843.5,2842.3,11.99275495]
[1769368626648,0.87896805,2844.3,2842.5,11.99275495]
[1769368626824,12.95569958,2844.3,2842.5,12.72875495]
[1769368627143,12.07673153,2844.3,2842.8,12.87216961]
[1769368627453,12.07673153,2844.3,2842.9,1.63898283]
[1769368627454,13.37229852,2844.2,2842.9,1.63898283]
[1769368627652,13.37229852,2844.2,2842.5,0.87948981]
[1769368627653,12.07673153,2844.0,2842.5,0.87948981]
[1769368627814,12.07673153,2844.0,2842.4,13.60827155]
[1769368628015,12.07673153,2843.8,2842.3,1.61556876]
[1769368628217,0.2335703,2844.0,2842.3,0.736]
[1769368628218,12.81273153,2843.7,2842.3,0.736]
[1769368628418,1.28127315,2843.6,2842.3,12.72875495]
[1769368628764,13.04630183,2844.0,2842.3,13.60829387]
[1769368628924,13.04630183,2844.0,2842.4,0.87953718]
[1769368629123,13.04630183,2844.0,2842.3,12.72875495]
[1769368629326,12.31030183,2843.8,2842.3,13.60831998]
[1769368629523,0.2335703,2843.9,2842.3,13.60831998]
[1769368629825,0.2335703,2843.9,2842.4,13.70542647]
[1769368629826,0.18486345,2843.8,2842.4,13.70542647]
[1769368630030,12.26159498,2843.8,2842.4,1.71267152]
[1769368630222,12.07673153,2843.7,2842.3,0.736]
[1769368630646,0.2335703,2843.6,2842.3,0.736]
[1769368630950,12.31030183,2843.6,2841.9,0.87967615]
[1769368631147,12.31030183,2843.6,2842.1,0.87962831]
[1769368631355,0.737,2843.5,2841.8,12.87247906]
[1769368631530,2.04173018,2843.5,2842.0,11.99275495]
[1769368631846,0.18486345,2843.8,2842.3,11.99275495]
[1769368632244,0.87902146,2844.1,2842.3,11.99275495]
[1769368632453,12.95575299,2844.1,2842.3,11.99275495]
[1769368633328,12.95575299,2844.1,2842.4,12.87229336]
[1769368633329,0.737,2844.0,2842.4,12.87229336]
[1769368633524,0.001,2843.8,2842.6,11.99275495]